bitfinex/quotes_SOLUSD_20250522
["timestamp","ask_amount","ask_price","bid_price","bid_amount"]
[1747950519378,0.14216157,177.88,177.83,5.62334814]
[1747950519573,0.14216157,177.88,177.87,12.49904936]
[1747950519750,0.14216157,177.89,177.87,12.49904936]
[1747950519955,0.14216157,177.88,177.87,12.49904936]
[1747950520575,0.14216157,177.88,177.83,5.62334814]
[1747950520746,0.14216157,177.88,177.87,12.49904936]
[1747950524180,0.14216157,177.89,177.87,12.49904936]
[1747950524367,0.14216157,177.88,177.87,12.49904936]
[1747950524570,0.14216157,177.88,177.84,5.62298284]
[1747950524781,0.14216157,177.88,177.87,12.49904936]
[1747950526092,24.55573948,177.88,177.87,12.49904936]
[1747950528289,18.933972,177.88,177.87,12.49904936]
[1747950528775,0.14216157,177.86,177.84,5.62278601]
[1747950529091,0.14216157,177.86,177.85,12.49904936]
[1747950529869,18.933972,177.89,177.85,18.12176513]
[1747950534502,18.79181043,177.89,177.88,12.49904936]
[1747950534796,18.933972,177.89,177.88,12.49904936]
[1747950535475,18.933972,177.89,177.84,5.62303193]
[1747950535789,18.933972,177.89,177.87,12.49904936]
[1747950536509,18.933972,177.89,177.84,5.62303193]
[1747950536678,18.933972,177.89,177.87,12.49904936]
[1747950538174,5.9058373,177.89,177.87,12.49904936]
[1747950538594,0.14216157,177.88,177.87,12.49904936]
[1747950539198,0.14216157,177.88,177.86,12.49904936]
[1747950539376,0.14216157,177.88,177.83,26.0]
[1747950539577,0.14216157,177.88,177.86,12.49904936]
[1747950539909,0.14216157,177.86,177.85,12.49904936]
[1747950541774,18.933972,177.86,177.82,6.3271]
[1747950541973,5.90672278,177.86,177.85,12.49904936]
[1747950544199,0.28432314,177.86,177.85,12.49904936]
[1747950544408,0.14216157,177.86,177.85,12.49904936]
[1747950545993,0.14216157,177.87,177.85,12.49904936]
[1747950550808,0.14216157,177.86,177.85,12.49904936]
[1747950552621,0.14216157,177.86,177.82,6.3271]
[1747950552784,0.14216157,177.86,177.85,12.49904936]
[1747950553524,0.14216157,177.86,177.82,6.3271]
[1747950553825,0.14216157,177.86,177.85,12.49904936]
[1747950554807,0.14216157,177.86,177.82,6.3271]
[1747950556514,5.6225759,177.86,177.82,6.3271]
[1747950556810,5.76509992,177.85,177.82,6.3271]
[1747950558498,5.76509992,177.85,177.81,1.6525]
[1747950560206,0.14216157,177.85,177.81,1.6525]
[1747950561717,0.14216157,177.85,177.81,7.27647228]
[1747950564314,0.14216157,177.86,177.81,7.27647228]
[1747950566701,5.76456222,177.86,177.81,7.27647228]
[1747950569415,0.14216157,177.86,177.81,7.27647228]
[1747950572920,5.76459467,177.86,177.81,7.27647228]
[1747950573425,0.14216157,177.86,177.81,7.27647228]
[1747950574336,5.62215338,177.87,177.81,7.27647228]
[1747950580544,5.62215338,177.87,177.81,1.6525]
[1747950583634,18.933972,177.86,177.81,1.6525]
[1747950584631,0.14216157,177.84,177.81,1.6525]
[1747950586920,5.62334814,177.83,177.81,1.6525]
[1747950588022,5.76529244,177.84,177.81,1.6525]
[1747950589346,18.79181043,177.86,177.81,1.6525]
[1747950589347,0.14216157,177.85,177.81,1.6525]
[1747950589530,0.14216157,177.85,177.81,7.2764524]
[1747950593316,0.14216157,177.87,177.81,7.2764524]
[1747950594546,5.62184891,177.88,177.81,7.2764524]
[1747950598528,5.62184891,177.88,177.82,12.01297205]
[1747950600350,5.62184891,177.88,177.82,6.3896]
[1747950607549,0.14216157,177.87,177.82,6.3896]
[1747950608247,18.933972,177.87,177.81,1.6525]
[1747950609468,5.62239964,177.86,177.81,1.6525]
[1747950635792,5.62239964,177.86,177.81,7.27637778]
[1747950637113,5.76434677,177.87,177.81,7.27637778]
[1747950638393,5.62176748,177.88,177.81,7.27637778]
[1747950643391,5.62176748,177.88,177.85,26.0]
[1747950643815,5.76329703,177.9,177.85,26.0]
[1747950643996,5.76329703,177.9,177.86,26.0]
[1747950644306,5.62113546,177.9,177.86,26.0]
[1747950644899,5.62090974,177.91,177.86,26.0]
[1747950646907,5.62090974,177.91,177.86,61.2]
[1747950647710,5.76269115,177.92,177.86,68.35617393]
[1747950648005,0.14216157,177.93,177.86,68.35617393]
[1747950648509,8.83059233,177.94,177.86,68.35617393]
[1747950648908,5.62015129,177.94,177.86,68.35617393]
[1747950649104,5.61960296,177.95,177.9,26.0]
[1747950649485,5.61960296,177.95,177.91,26.0]
[1747950649893,5.61960296,177.95,177.92,26.0]
[1747950650806,18.79181043,177.97,177.92,26.0]
[1747950650807,5.76140184,177.96,177.92,26.0]
[1747950653306,0.14216157,177.97,177.89,31.62135216]
[1747950654501,5.61924027,177.96,177.89,31.62135216]
[1747950659010,5.61924027,177.96,177.92,26.0]
[1747950674427,5.61924027,177.96,177.92,21.952819]
[1747950678753,19.66734096,177.96,177.92,21.952819]
[1747950679263,0.14216157,177.95,177.92,21.952819]
[1747950680560,5.61987186,177.94,177.92,21.952819]
[1747950681761,5.76266516,177.92,177.9,35.7]
[1747950682461,19.81392415,177.92,177.88,26.0]
[1747950684362,19.81392415,177.92,177.86,1.5338]
[1747950684551,0.14216157,177.9,177.86,1.5338]
[1747950686059,5.62145145,177.89,177.86,1.5338]
[1747950690773,5.62145145,177.89,177.85,61.58]
[1747950692173,5.62208354,177.87,177.85,61.58]
[1747950692474,5.62208354,177.87,177.85,35.58]
[1747950693562,5.62176748,177.88,177.85,35.58]
[1747950707800,5.62176748,177.88,177.82,1.5388]
[1747950729141,5.62176748,177.88,177.82,7.16232188]
[1747950730637,3.21151414,177.92,177.85,26.0]
[1747950730948,3.21151414,177.92,177.86,26.0]
[1747950732018,5.76255398,177.93,177.87,5.62208354]
[1747950735457,5.76255398,177.93,177.85,5.62271577]
[1747950739048,5.76255398,177.93,177.88,26.0]
[1747950739729,5.76255398,177.93,177.88,31.62175599]
[1747950748478,18.79181043,177.93,177.88,31.62175599]
[1747950750680,0.14216157,177.93,177.88,31.62175599]
[1747950750882,18.79181043,177.94,177.88,31.62175599]
[1747950751187,0.28432314,177.95,177.88,31.62175599]
[1747950751380,0.14216157,177.97,177.88,31.62175599]
[1747950751683,4.0130513,177.99,177.88,45.67617469]
[1747950751684,9.63135443,177.99,177.88,45.67617469]
[1747950751858,18.79181043,177.98,177.88,45.67617469]
[1747950752483,18.79181043,177.98,177.93,5.62018771]
[1747950752789,0.14216157,177.98,177.93,5.62018771]
[1747950755198,0.14216157,177.99,177.96,26.0]
[1747950755386,18.79181043,178.01,177.96,26.0]
[1747950755586,0.14216157,178.01,177.96,26.0]
[1747950756266,0.14216157,178.02,177.96,26.0]
[1747950757164,3.20941699,178.04,177.96,26.0]
[1747950757395,5.61711652,178.03,177.96,26.0]
[1747950759322,5.61671534,178.04,177.96,26.0]
[1747950759529,5.61671534,178.04,177.98,26.0]
[1747950759740,5.61671534,178.04,177.98,61.2]
[1747950764415,5.61671534,178.04,177.99,1.5633]
[1747950767343,5.61545372,178.08,178.0,6.1947]
[1747950767511,5.61545372,178.08,178.01,33.68]
[1747950768015,5.75737789,178.09,178.01,33.68]
[1747950768220,5.61450788,178.11,178.01,59.68]
[1747950768637,5.61450788,178.11,178.02,0.56146864]
[1747950769312,5.61450788,178.11,178.05,5.61639988]
[1747950769642,5.61450788,178.11,178.06,41.3747]
[1747950770139,5.6138775,178.13,178.06,75.0547]
[1747950772647,5.6138775,178.13,178.09,26.0]
[1747950778049,14.02918069,178.2,178.1,1.5953]
[1747950778234,14.02918069,178.2,178.15,26.0]
[1747950778432,5.61167227,178.2,178.15,26.0]
[1747950779450,5.61167227,178.2,178.17,26.0]
[1747950779664,0.14216157,178.22,178.17,26.0]
[1747950780356,19.63797986,178.23,178.17,26.0]
[1747950788465,19.63797986,178.23,178.16,35.1732]
[1747950792859,0.14216157,178.22,178.16,1.5132]
[1747950793069,0.14216157,178.22,178.14,120.71035648]
[1747950793275,19.60845346,178.22,178.14,117.86]
[1747950793437,19.60845346,178.22,178.14,143.86]
[1747950793643,18.79181043,178.22,178.14,143.86]
[1747950794368,0.14216157,178.2,178.14,61.36]
[1747950795393,18.79181043,178.2,178.14,61.36]
[1747950796459,19.46629189,178.17,178.09,35.32]
[1747950796678,19.46629189,178.17,178.07,4.46729099]
[1747950796679,0.14216157,178.15,178.07,4.46729099]
[1747950796883,19.60845346,178.15,178.07,36.9582]
[1747950797101,0.14216157,178.13,178.08,26.0]
[1747950797263,18.79181043,178.13,178.08,26.0]
[1747950797465,38.25810232,178.13,178.08,26.0]
[1747950797658,18.933972,178.13,178.07,35.32]
[1747950797866,18.933972,178.13,178.07,61.32]
[1747950798383,0.14216157,178.11,178.07,35.32]
[1747950800362,5.61482313,178.1,178.07,35.32]
[1747950817685,19.65188096,178.1,178.04,35.38]
[1747950817996,18.79181043,178.09,178.02,7.7241]
[1747950818174,18.79181043,178.09,178.03,26.0]
[1747950819902,19.65408804,178.08,178.03,26.0]
[1747950822780,19.65408804,178.08,178.02,7.7241]
[1747950826701,19.65408804,178.08,178.02,1.6382]
[1747950829390,19.65629562,178.06,178.02,1.6382]
[1747950829883,19.65629562,178.06,178.01,35.38]
[1747950830302,0.14216157,178.05,178.01,35.38]
[1747950831707,5.61671534,178.04,178.01,35.38]
[1747950837729,5.61576907,178.07,178.01,35.38]
[1747950838686,5.61576907,178.07,178.01,40.99764081]
[1747950839289,5.61576907,178.07,178.01,35.38]
[1747950852329,19.65354215,178.09,178.01,40.99759558]
[1747950857830,19.65354215,178.09,178.01,35.38]
[1747950866522,19.65354215,178.09,178.02,35.18]
[1747950868232,19.65354215,178.09,178.0,5.61786684]
[1747950868438,19.65354215,178.09,178.02,35.18]
[1747950871920,8.84107775,178.1,178.03,34.2673]
[1747950872135,3.22617872,178.1,178.03,34.2673]
[1747950872641,5.6138775,178.13,178.03,34.2673]
[1747950873343,5.6138775,178.13,178.03,34.82871928]
[1747950874024,5.6138775,178.13,178.07,26.0]
[1747950875139,5.61356236,178.14,178.08,35.18]
[1747950876334,14.03353552,178.15,178.08,35.18]
[1747950876335,5.61324726,178.15,178.08,35.18]
[1747950877468,5.61293219,178.16,178.08,35.18]
[1747950878634,38.29491153,178.16,178.08,35.18]
[1747950880747,38.29491153,178.16,178.08,36.7902]
[1747950882245,19.64526267,178.16,178.08,36.7902]
[1747950887155,14.03233048,178.16,178.08,36.7902]
[1747950889059,19.64526267,178.16,178.11,26.0]
[1747950890034,19.64526267,178.16,178.08,36.7902]
[1747950890233,19.64526267,178.16,178.11,26.0]
[1747950891555,19.64526267,178.16,178.08,36.7902]
[1747950891758,19.64526267,178.16,178.11,26.0]
[1747950891957,14.03233048,178.16,178.11,26.0]
[1747950893061,19.64526267,178.16,178.11,26.0]
[1747950900872,12.47863984,178.14,178.08,1.6102]
[1747950901045,18.79181043,178.11,178.04,35.16]
[1747950901460,12.62080141,178.11,178.07,26.0]
[1747950901654,12.62080141,178.11,178.04,35.16]
[1747950902067,12.62080141,178.08,178.01,35.16]
[1747950902266,19.65629562,178.06,178.01,35.16]
[1747950902658,19.65629562,178.06,178.01,61.16]
[1747950905263,5.61671534,178.04,178.01,26.0]
[1747950905463,5.61671534,178.04,177.96,35.16]
[1747950905868,5.61671534,178.04,177.99,26.0]
[1747950907870,5.61671534,178.04,177.97,26.0]
[1747950928102,19.6585037,178.04,177.98,26.0]
[1747950930284,5.61734636,178.02,177.98,26.0]
[1747950930484,19.66071227,178.02,177.98,26.0]
[1747950931090,19.66071227,178.02,177.95,27.6152]
[1747950933907,19.66071227,178.02,177.95,1.6152]
[1747950940312,5.61797752,178.0,177.95,1.6152]
[1747950941416,24.40947235,178.01,177.95,1.6152]
[1747950941903,38.45362717,178.01,177.95,1.6152]
[1747950951694,41.67992675,178.01,177.95,1.6152]
[1747950953027,38.45362717,178.01,177.95,1.6152]
[1747950957024,38.45362717,178.01,177.94,6.5051]
[1747950961724,5.61766192,178.01,177.94,6.5051]
[1747950961912,5.61706119,178.03,177.97,26.0]
[1747950962732,5.61706119,178.03,177.99,26.0]
[1747950962910,4.0130513,178.05,177.99,26.0]
[1747950963230,4.0130513,178.05,178.01,1.6464]
[1747950963231,9.6295574,178.05,178.01,1.6464]
[1747950963927,5.6165061,178.05,178.01,1.6464]
[1747950964812,5.61576907,178.07,178.03,26.0]
[1747950966422,5.61576907,178.07,178.04,26.0]
[1747950968125,5.61545372,178.08,178.04,26.0]
[1747950969316,5.61513841,178.09,178.04,26.0]
[1747950973036,5.61419267,178.12,178.04,31.61655861]
[1747950975925,5.61331561,178.15,178.08,26.0]
[1747950976129,5.61331561,178.15,178.09,26.0]
[1747950977030,5.61261716,178.17,178.09,31.61500178]
[1747950978528,5.61261716,178.17,178.09,26.0]
[1747950980109,5.61261716,178.17,178.09,31.61506893]
[1747950980513,5.61261716,178.17,178.09,66.73506893]
[1747950981336,5.61261716,178.17,178.09,61.12]
[1747950983443,19.64416006,178.17,178.09,61.12]
[1747950984647,19.64416006,178.17,178.1,1.5631]
[1747950987328,5.61261716,178.17,178.1,7.17790443]
[1747950988646,5.6119872,178.19,178.1,13.46680443]
[1747950991247,19.64195521,178.19,178.1,13.46680443]
[1747950993949,19.64195521,178.19,178.14,26.0]
[1747950994155,5.6119872,178.19,178.14,26.0]
[1747950995953,5.61135738,178.21,178.14,26.0]
[1747950996629,5.61135738,178.21,178.13,2.73463681]
[1747950996630,5.61135738,178.21,178.15,26.0]
[1747950997751,19.63927184,178.22,178.15,26.0]
[1747951003032,19.63927184,178.22,178.15,27.6093]
[1747951005071,14.02822931,178.22,178.15,27.6093]
[1747951005261,14.02822931,178.22,178.15,32.1873525]
[1747951005958,14.02822931,178.22,178.15,67.2873525]
[1747951006260,19.63927184,178.22,178.15,67.2873525]
[1747951006658,19.63927184,178.22,178.15,62.7093]
[1747951006842,32.11791168,178.22,178.15,62.7093]
[1747951007237,12.47863984,178.19,178.13,26.0]
[1747951008257,19.64305757,178.18,178.13,26.0]
[1747951010183,19.64305757,178.18,178.06,24.26560636]
[1747951010184,12.47863984,178.16,178.06,7.9913]
[1747951010350,19.64746827,178.14,178.06,7.9913]
[1747951010667,19.64746827,178.14,178.09,26.0]
[1747951013659,19.64746827,178.14,178.07,26.0]
[1747951022686,19.64746827,178.14,178.06,7.9913]
[1747951022687,19.64746827,178.14,178.09,26.0]
[1747951024283,14.03390591,178.14,178.09,26.0]
[1747951028662,5.61293219,178.16,178.1,26.0]
[1747951035491,19.64526267,178.16,178.1,26.0]
[1747951041688,19.64526267,178.16,178.11,26.0]
[1747951043197,5.61293219,178.16,178.11,26.0]
[1747951043493,5.61293219,178.16,178.12,26.0]
[1747951044090,19.78521914,178.18,178.12,26.0]
[1747951051399,19.78521914,178.18,178.09,100.33497915]
[1747951051895,19.78521914,178.18,178.09,94.72]
[1747951053400,19.64305757,178.18,178.12,26.0]
[1747951058912,19.64305757,178.18,178.13,26.0]
[1747951060414,14.03075541,178.18,178.13,26.0]
[1747951064517,5.6119872,178.19,178.14,26.0]
[1747951066331,19.64036546,178.21,178.14,26.0]
[1747951067193,5.61135738,178.21,178.14,26.0]
[1747951067814,5.61135738,178.21,178.15,26.0]
[1747951068327,19.63910844,178.22,178.15,26.0]
[1747951076033,19.63910844,178.22,178.16,26.0]
[1747951081574,19.63910844,178.22,178.15,26.0]
[1747951087641,0.28432314,178.21,178.14,35.04]
[1747951087843,12.47863984,178.15,178.07,8.0908]
[1747951088050,12.47863984,178.14,178.07,1.5229]
[1747951088259,12.47863984,178.13,178.08,26.0]
[1747951088563,12.47863984,178.12,178.05,8.03622216]
[1747951088761,19.6507776,178.11,178.08,26.0]
[1747951089069,12.47863984,178.09,178.05,8.03622216]
[1747951089249,12.62080141,178.08,178.05,8.03622216]
[1747951090969,5.61576907,178.07,178.03,26.0]
[1747951091273,5.61576907,178.07,178.01,26.0]
[1747951097273,5.61576907,178.07,178.02,26.0]
[1747951099471,5.61576907,178.07,178.01,26.0]
[1747951100966,5.61576907,178.07,178.02,26.0]
[1747951108361,5.61576907,178.07,178.0,5.61797022]
[1747951108560,5.61482313,178.1,178.03,26.0]
[1747951108788,5.61459407,178.11,178.03,26.0]
[1747951109199,5.61459407,178.11,178.04,1.5108]
[1747951109367,5.7563621,178.12,178.04,1.5108]
[1747951109763,5.61420053,178.12,178.04,1.5108]
[1747951110516,5.75603907,178.13,178.05,5.61639988]
[1747951110893,5.75603907,178.13,178.06,26.0]
[1747951111711,5.75603907,178.13,178.06,31.61583094]
[1747951111893,5.75603907,178.13,178.06,5.61583094]
[1747951113122,5.75603907,178.13,178.08,26.0]
[1747951114814,5.75603907,178.13,178.06,31.61580558]
[1747951115016,5.6138775,178.13,178.06,31.61580558]
[1747951116010,5.75572393,178.14,178.06,31.61580558]
[1747951118092,5.61356236,178.14,178.06,31.61580558]
[1747951118519,12.4716666,178.15,178.06,31.61580558]
[1747951118520,18.08501703,178.15,178.06,31.61580558]
[1747951118720,5.75516184,178.16,178.06,45.65601674]
[1747951119521,5.61230216,178.18,178.06,45.65601674]
[1747951119728,0.14216157,178.17,178.06,45.65601674]
[1747951120814,5.75496219,178.17,178.06,45.65601674]
[1747951121600,154.08390224,178.19,178.1,26.0]
[1747951121898,18.08341371,178.2,178.12,26.0]
[1747951122101,5.61174711,178.2,178.12,26.0]
[1747951122328,5.61174711,178.2,178.14,26.0]
[1747951122924,5.61135738,178.21,178.14,31.61341849]
[1747951123625,5.61135738,178.21,178.14,35.9770569]
[1747951127614,5.61104253,178.22,178.14,35.9770569]
[1747951128334,25.22328479,178.24,178.14,35.9770569]
[1747951128545,25.22328479,178.24,178.14,50.01096281]
[1747951128843,0.14216157,178.25,178.14,50.01096281]
[1747951129837,5.61041292,178.24,178.14,50.01096281]
[1747951132346,5.60978346,178.26,178.16,6.6082]
[1747951132549,5.60978346,178.26,178.16,41.6282]
[1747951133450,5.60978346,178.26,178.17,31.61261716]
[1747951135648,5.60946878,178.27,178.18,1.662]
[1747951137654,19.63224608,178.28,178.21,26.0]
[1747951140768,39.10266402,178.28,178.21,26.0]
[1747951143658,32.08505471,178.28,178.21,26.0]
[1747951144567,19.63224608,178.28,178.21,26.0]
[1747951144747,5.60915413,178.28,178.2,26.0]
[1747951145742,5.60915413,178.28,178.2,31.61137103]
[1747951146258,12.45280863,178.27,178.22,26.0]
[1747951146562,18.06196276,178.28,178.22,26.0]
[1747951151486,32.0848481,178.28,178.22,26.0]
[1747951152874,19.63203947,178.28,178.22,26.0]
[1747951153172,32.0848481,178.28,178.22,26.0]
[1747951155063,32.0848481,178.28,178.21,26.0]
[1747951158780,19.63203947,178.28,178.21,26.0]
[1747951159162,32.0848481,178.28,178.21,26.0]
[1747951159484,19.63203947,178.28,178.21,26.0]
[1747951159789,32.0848481,178.28,178.21,26.0]
[1747951160285,0.14216157,178.25,178.18,1.662]
[1747951160467,12.45280863,178.21,178.13,1.661]
[1747951160674,12.45280863,178.19,178.13,1.661]
[1747951160972,12.45280863,178.17,178.09,1.661]
[1747951161286,12.45280863,178.15,178.09,1.661]
[1747951161460,12.45280863,178.13,178.07,35.0]
[1747951161661,32.10358623,178.11,178.06,8.03622216]
[1747951161981,12.45280863,178.1,178.04,1.661]
[1747951162168,12.45280863,178.08,178.01,35.0]
[1747951162367,12.45280863,178.07,178.01,35.0]
[1747951162561,0.14216157,178.06,177.96,43.03622216]
[1747951162776,12.45280863,178.03,177.96,43.03622216]
[1747951162979,12.45280863,178.01,177.96,8.03622216]
[1747951163506,12.45280863,177.97,177.96,8.03622216]
[1747951163672,5.61829316,177.99,177.96,8.03622216]
[1747951163871,0.14216157,177.98,177.96,8.03622216]
[1747951164884,0.14216157,178.0,177.94,26.0]
[1747951165572,0.14216157,178.01,177.94,26.0]
[1747951165903,0.14216157,178.01,177.95,5.61955605]
[1747951178906,26.0,178.03,177.95,5.61955605]
[1747951179116,0.14216157,178.02,177.93,14.05011448]
[1747951179616,0.14216157,178.02,177.93,40.05011448]
[1747951179795,0.14216157,178.02,177.84,1.6419]
[1747951179796,38.31538417,177.96,177.84,1.6419]
[1747951179994,19.66573531,177.95,177.84,1.6419]
[1747951180210,0.14216157,177.93,177.84,1.6419]
[1747951180390,0.14216157,177.93,177.88,26.0]
[1747951181210,0.14216157,177.93,177.86,31.62239672]
[1747951181407,5.76262805,177.93,177.86,31.62239672]
[1747951184321,5.76262805,177.93,177.86,26.0]
[1747951184524,5.76262805,177.93,177.89,19.52988147]
[1747951187427,5.76262805,177.93,177.9,19.52988147]
[1747951187624,5.61955605,177.95,177.9,19.52988147]
[1747951187927,5.61955605,177.95,177.92,19.52988147]
[1747951189137,5.61955605,177.95,177.93,19.52988147]
[1747951189309,5.61955605,177.95,177.92,19.52988147]
[1747951190604,5.61921729,177.97,177.93,19.52988147]
[1747951194434,5.61921729,177.97,177.92,19.52988147]
[1747951195030,5.61921729,177.97,177.93,19.52988147]
[1747951195417,5.61921729,177.97,177.92,19.52988147]
[1747951196321,5.61921729,177.97,177.93,19.52988147]
[1747951198445,5.61829316,177.99,177.95,19.52988147]
[1747951198748,5.61829316,177.99,177.96,19.52988147]
[1747951199067,5.61829316,177.99,177.97,19.52988147]
[1747951199569,0.14216157,178.0,177.92,1.5973]
[1747951199570,5.61734636,178.02,177.98,19.52988147]
[1747951199945,5.61734636,178.02,177.94,26.0]
[1747951200132,5.61639988,178.05,177.94,18.64964886]
[1747951200369,5.61639988,178.05,178.01,26.0]
[1747951201304,5.61639988,178.05,177.98,6.1211]
[1747951201305,19.50962311,178.03,177.98,6.1211]
[1747951201510,19.50962311,178.03,177.96,26.0]
[1747951201798,5.61639988,178.05,177.96,26.0]
[1747951201799,19.66181674,178.01,177.96,26.0]
[1747951201960,0.14216157,178.0,177.95,1.6054]
[1747951202398,5.61766192,178.01,177.95,1.6054]
[1747951202566,5.61766192,178.01,177.98,26.0]
[1747951202770,5.61739898,178.02,177.98,26.0]
[1747951203869,14.04226107,178.04,177.98,26.0]
[1747951203870,39.16859952,178.04,177.98,26.0]
[1747951204970,0.14216157,178.02,177.98,26.0]
[1747951205172,0.14216157,178.02,177.97,26.0]
[1747951205386,0.14216157,178.0,177.95,27.6054]
[1747951205561,0.14216157,178.0,177.95,1.6054]
[1747951205965,5.61829316,177.99,177.95,1.6054]
[1747951207395,0.14216157,178.0,177.99,2.71504017]
[1747951208195,3.36081165,178.0,177.99,2.71504017]
[1747951208772,8.97878917,178.0,177.99,2.71504017]
[1747951209204,28.63057385,178.0,177.99,2.71504017]
[1747951212203,9.12095074,178.0,177.99,2.71504017]
[1747951213078,8.97878917,178.0,177.99,2.71504017]
[1747951214204,3.21865008,178.01,177.99,2.71504017]
[1747951214372,8.83641136,178.01,177.99,2.71504017]
[1747951215909,5.61711344,178.03,177.99,2.71504017]
[1747951216217,8.83543557,178.04,178.01,26.0]
[1747951216688,3.21865008,178.04,178.01,26.0]
[1747951216875,8.8354308,178.04,178.02,26.0]
[1747951217066,5.61678072,178.04,178.02,26.0]
[1747951217272,5.75793064,178.07,178.02,26.0]
[1747951217502,5.61576907,178.07,178.02,26.0]
[1747951218299,9.62854575,178.08,178.02,31.6172602]
[1747951219283,4.0130513,178.08,178.02,31.6172602]
[1747951219608,0.14216157,178.11,178.02,31.6172602]
[1747951220592,5.61512504,178.1,178.03,26.0]
[1747951221602,33.54363122,178.14,178.03,26.0]
[1747951221807,5.6138775,178.13,178.05,8.2171]
[1747951222408,5.6138775,178.13,178.08,26.0]
[1747951222612,5.6138775,178.13,178.09,26.0]
[1747951222796,4.0130513,178.15,178.09,26.0]
[1747951223032,5.61261716,178.17,178.09,26.0]
[1747951223728,5.61261716,178.17,178.09,31.61507407]
[1747951224123,5.61261716,178.17,178.09,26.0]
[1747951224346,19.64416006,178.17,178.1,26.0]
[1747951224532,5.61261716,178.17,178.1,26.0]
[1747951225151,19.64416006,178.17,178.09,27.6048]
[1747951225454,19.64416006,178.17,178.1,26.0]
[1747951225624,5.61261716,178.17,178.1,26.0]
[1747951226059,19.64121091,178.2,178.12,26.0]
[1747951226661,19.64121091,178.2,178.1,26.0]
[1747951227646,19.65178468,178.19,178.11,26.0]
[1747951227965,19.65178468,178.19,178.09,27.6048]
[1747951228937,19.64305757,178.18,178.09,27.6048]
[1747951229339,39.15268068,178.18,178.09,27.6048]
[1747951229866,39.15268068,178.18,178.1,26.0]
[1747951231258,19.64305757,178.18,178.1,26.0]
[1747951232448,19.64305757,178.18,178.11,26.0]
[1747951232960,19.64305757,178.18,178.09,27.6048]
[1747951233268,5.61230216,178.18,178.09,33.21980481]
[1747951233573,5.61230216,178.18,178.1,25.09214886]
[1747951234066,19.64085296,178.2,178.13,26.0]
[1747951238459,5.61167227,178.2,178.13,26.0]
[1747951239369,5.7532041,178.22,178.13,26.0]
[1747951239746,19.78081042,178.22,178.13,26.0]
[1747951241648,19.78081042,178.22,178.13,31.61384974]
[1747951241849,5.61104253,178.22,178.17,27.607]
[1747951242453,5.61104253,178.22,178.17,34.2146]
[1747951242677,5.61041292,178.24,178.18,35.5]
[1747951243678,19.6359143,178.25,178.18,35.5]
[1747951243881,5.61009817,178.25,178.21,26.0]
[1747951249483,47.55406139,178.29,178.21,26.0]
[1747951249484,14.02266814,178.29,178.21,26.0]
[1747951249687,5.60915413,178.28,178.21,26.0]
[1747951249999,21.06182311,178.31,178.24,1.5735]
[1747951250000,5.60821042,178.31,178.24,1.5735]
[1747951250165,5.60821042,178.31,178.25,35.48]
[1747951250365,5.60726701,178.34,178.28,26.0]
[1747951250576,5.60695262,178.35,178.28,26.0]
[1747951250782,5.60695262,178.35,178.3,26.0]
[1747951251675,5.60695262,178.35,178.28,31.60902382]
[1747951252070,5.60632393,178.37,178.31,26.0]
[1747951252492,5.60632393,178.37,178.31,61.48]
[1747951253189,5.60632393,178.37,178.32,1.5066]
[1747951255090,19.61806606,178.41,178.32,13.1345591]
[1747951256805,19.61806606,178.41,178.32,7.5267]
[1747951259484,19.61806606,178.41,178.32,13.13448592]
[1747951259485,5.60506698,178.41,178.32,13.13448592]
[1747951260196,5.60506698,178.41,178.33,18.64964886]
[1747951261500,19.61737996,178.42,178.33,24.25722789]
[1747951262405,19.61737996,178.42,178.33,5.60757903]
[1747951262603,14.01262713,178.42,178.33,5.60757903]
[1747951262809,5.60443871,178.43,178.36,26.0]
[1747951262989,19.50962311,178.47,178.37,61.54]
[1747951263178,5.60286866,178.48,178.37,61.54]
[1747951263378,19.50962311,178.47,178.37,61.54]
[1747951263596,19.50962311,178.46,178.37,61.54]
[1747951263987,5.60412463,178.44,178.37,61.54]
[1747951265885,19.61443621,178.44,178.37,61.54]
[1747951266083,19.50962311,178.43,178.37,61.54]
[1747951266408,19.50962311,178.42,178.37,61.54]
[1747951266610,19.50962311,178.42,178.37,35.54]